[Event "Late-Titled-Tuesday-Blitz-March-05-2024"]
[Site "Chess.com"]
[Date "2024.03.05"]
[Round "5"]
[White "masterofpuppets2"]
[Black "TimGrutter03"]
[Result "1-0"]
[WhiteElo "2492"]
[BlackElo "2603"]
[TimeControl "180+1"]
[EndTime "14:53:30 PST"]
[Termination "masterofpuppets2 won by resignation"]

1. d4 {[%clk 0:03:00.9]} 1... d5 {[%clk 0:02:59.5]} 2. c4 {[%clk 0:03:01.6]}
2... e6 {[%clk 0:03:00]} 3. Nc3 {[%clk 0:03:02.1]} 3... a6 {[%clk 0:03:00.4]} 4.
cxd5 {[%clk 0:03:01.3]} 4... exd5 {[%clk 0:03:01.3]} 5. Qc2 {[%clk 0:03:00.6]}
5... c6 {[%clk 0:03:00.8]} 6. Nf3 {[%clk 0:02:59.4]} 6... Nf6 {[%clk 0:02:59.6]}
7. Bg5 {[%clk 0:02:58.2]} 7... Be7 {[%clk 0:02:59.2]} 8. e3 {[%clk 0:02:58.5]}
8... O-O {[%clk 0:02:57.2]} 9. Bd3 {[%clk 0:02:59]} 9... h6 {[%clk 0:02:56.8]}
10. Bf4 {[%clk 0:02:58.6]} 10... Be6 {[%clk 0:02:47.9]} 11. h3 {[%clk 0:02:58]}
11... Nbd7 {[%clk 0:02:45.6]} 12. O-O {[%clk 0:02:57.7]} 12... Ne8 {[%clk
0:02:40.6]} 13. b4 {[%clk 0:02:52.9]} 13... Bxb4 {[%clk 0:02:35.7]} 14. Rfb1
{[%clk 0:02:52.4]} 14... Qe7 {[%clk 0:02:23.5]} 15. a3 {[%clk 0:02:50.5]} 15...
Bxc3 {[%clk 0:02:06.7]} 16. Qxc3 {[%clk 0:02:51.4]} 16... Ndf6 {[%clk
0:02:05.2]} 17. a4 {[%clk 0:02:47.2]} 17... Ne4 {[%clk 0:02:02.8]} 18. Qc2
{[%clk 0:02:45.2]} 18... N8d6 {[%clk 0:01:58.9]} 19. Rb6 {[%clk 0:02:37.1]}
19... g5 {[%clk 0:01:44.8]} 20. Bh2 {[%clk 0:02:33.2]} 20... f5 {[%clk
0:01:39.9]} 21. Ne5 {[%clk 0:02:28.3]} 21... Qc7 {[%clk 0:01:36.6]} 22. Rab1
{[%clk 0:02:26.2]} 22... Nb5 {[%clk 0:01:24.7]} 23. axb5 {[%clk 0:02:15.4]}
23... Qxb6 {[%clk 0:01:24.7]} 24. bxc6 {[%clk 0:02:15.7]} 24... Qc7 {[%clk
0:01:04.6]} 25. cxb7 {[%clk 0:02:04.9]} 25... Qxc2 {[%clk 0:01:01.5]} 26. Bxc2
{[%clk 0:02:05.8]} 26... Rab8 {[%clk 0:00:59.5]} 27. Nc6 {[%clk 0:02:04.2]}
27... f4 {[%clk 0:00:23]} 28. Nxb8 {[%clk 0:02:03.1]} 28... Rxb8 {[%clk
0:00:23.9]} 29. exf4 {[%clk 0:01:59.8]} 29... Nd6 {[%clk 0:00:19]} 30. f5 {[%clk
0:01:59]} 30... Rxb7 {[%clk 0:00:18.1]} 31. Rxb7 {[%clk 0:01:58.4]} 31... Nxb7
{[%clk 0:00:19]} 32. fxe6 {[%clk 0:01:59]} 32... Kf8 {[%clk 0:00:16.7]} 33. Ba4
{[%clk 0:01:53.1]} 33... Ke7 {[%clk 0:00:15.4]} 34. Bc6 {[%clk 0:01:53.7]} 34...
Nd8 {[%clk 0:00:11.2]} 35. Bxd5 {[%clk 0:01:53.4]} 35... Nxe6 {[%clk 0:00:12.1]}
36. Bxe6 {[%clk 0:01:51.2]} 36... Kxe6 {[%clk 0:00:13]} 37. f4 {[%clk
0:01:42.9]} 37... gxf4 {[%clk 0:00:10.8]} 38. Bxf4 {[%clk 0:01:43.8]} 38... h5
{[%clk 0:00:11.3]} 39. Kf2 {[%clk 0:01:42]} 39... a5 {[%clk 0:00:10]} 40. Bd2
{[%clk 0:01:40]} 40... a4 {[%clk 0:00:10.1]} 41. Bb4 {[%clk 0:01:40.4]} 41...
Kd5 {[%clk 0:00:11]} 42. Ke3 {[%clk 0:01:40.7]} 1-0

[Event "Late-Titled-Tuesday-Blitz-March-05-2024"]
[Site "Chess.com"]
[Date "2024.03.05"]
[Round "5"]
[White "Zhigalko_Sergei"]
[Black "Bryanl106"]
[Result "0-1"]
[WhiteElo "2873"]
[BlackElo "2656"]
[TimeControl "180+1"]
[EndTime "14:53:34 PST"]
[Termination "Bryanl106 won on time"]

1. e4 {[%clk 0:02:57.9]} 1... e5 {[%clk 0:02:57.4]} 2. Nf3 {[%clk 0:02:56.6]}
2... Nc6 {[%clk 0:02:57.8]} 3. Bc4 {[%clk 0:02:51.6]} 3... Nf6 {[%clk 0:02:56]}
4. d3 {[%clk 0:02:49.7]} 4... Bc5 {[%clk 0:02:55.5]} 5. O-O {[%clk 0:02:46.8]}
5... d6 {[%clk 0:02:47.7]} 6. c3 {[%clk 0:02:46.1]} 6... a5 {[%clk 0:02:46.8]}
7. Nbd2 {[%clk 0:02:44.8]} 7... O-O {[%clk 0:02:43.6]} 8. h3 {[%clk 0:02:42.1]}
8... h6 {[%clk 0:02:42.5]} 9. Re1 {[%clk 0:02:42.2]} 9... a4 {[%clk 0:02:37]}
10. Nf1 {[%clk 0:02:36.7]} 10... Bd7 {[%clk 0:02:07.4]} 11. d4 {[%clk
0:02:03.8]} 11... Bb6 {[%clk 0:02:06]} 12. Ng3 {[%clk 0:01:54.6]} 12... Qe7
{[%clk 0:01:59.7]} 13. Nh4 {[%clk 0:01:47.1]} 13... exd4 {[%clk 0:01:55]} 14.
Ng6 {[%clk 0:01:45.2]} 14... Qd8 {[%clk 0:01:48]} 15. Nxf8 {[%clk 0:01:35.4]}
15... Qxf8 {[%clk 0:01:48.9]} 16. cxd4 {[%clk 0:01:32.5]} 16... Bxd4 {[%clk
0:01:47.5]} 17. Rb1 {[%clk 0:01:25.6]} 17... Bc5 {[%clk 0:01:37.4]} 18. Be3
{[%clk 0:00:43.2]} 18... Bxe3 {[%clk 0:01:33.5]} 19. Rxe3 {[%clk 0:00:44.1]}
19... Ne5 {[%clk 0:01:33.9]} 20. Be2 {[%clk 0:00:43.2]} 20... Bc6 {[%clk
0:01:27.2]} 21. Qc2 {[%clk 0:00:42.3]} 21... Ra5 {[%clk 0:01:24.3]} 22. Rd1
{[%clk 0:00:39.8]} 22... Rc5 {[%clk 0:01:23.3]} 23. Rc3 {[%clk 0:00:37.7]} 23...
Rxc3 {[%clk 0:01:22.3]} 24. Qxc3 {[%clk 0:00:38.6]} 24... Ng6 {[%clk 0:01:22.6]}
25. Qb4 {[%clk 0:00:25.5]} 25... Qe8 {[%clk 0:01:19.8]} 26. Bf1 {[%clk
0:00:11.7]} 26... Nf4 {[%clk 0:01:17.2]} 0-1

[Event "Late-Titled-Tuesday-Blitz-March-05-2024"]
[Site "Chess.com"]
[Date "2024.03.05"]
[Round "5"]
[White "FairChess_on_YouTube"]
[Black "Goryachkina"]
[Result "1-0"]
[WhiteElo "3090"]
[BlackElo "2710"]
[TimeControl "180+1"]
[EndTime "14:53:48 PST"]
[Termination "FairChess_on_YouTube won on time"]

1. g4 {[%clk 0:03:00.9]} 1... e5 {[%clk 0:02:49.1]} 2. Bg2 {[%clk 0:02:58.7]}
2... d6 {[%clk 0:02:47.4]} 3. h3 {[%clk 0:02:58.6]} 3... Nc6 {[%clk 0:02:46.6]}
4. d3 {[%clk 0:02:52.4]} 4... h5 {[%clk 0:02:41.7]} 5. g5 {[%clk 0:02:51.2]}
5... h4 {[%clk 0:02:41]} 6. c4 {[%clk 0:02:45.9]} 6... Nge7 {[%clk 0:02:39.3]}
7. Nc3 {[%clk 0:02:45.4]} 7... Ng6 {[%clk 0:02:36]} 8. Be4 {[%clk 0:02:36.6]}
8... Be6 {[%clk 0:02:25.5]} 9. Nf3 {[%clk 0:02:30.7]} 9... Qd7 {[%clk
0:02:23.1]} 10. Qb3 {[%clk 0:02:30.3]} 10... Rb8 {[%clk 0:01:51.8]} 11. Be3
{[%clk 0:02:24.9]} 11... Na5 {[%clk 0:01:34.3]} 12. Qb5 {[%clk 0:02:20.3]} 12...
b6 {[%clk 0:01:25.9]} 13. b4 {[%clk 0:02:06]} 13... Qxb5 {[%clk 0:00:14]} 14.
Nxb5 {[%clk 0:02:04.4]} 14... d5 {[%clk 0:00:13.9]} 15. Nxc7+ {[%clk 0:01:41.8]}
15... Kd7 {[%clk 0:00:12.6]} 16. Nxd5 {[%clk 0:01:26.1]} 16... Bxd5 {[%clk
0:00:12.4]} 17. Bxd5 {[%clk 0:01:24.7]} 17... Bxb4+ {[%clk 0:00:12.1]} 18. Kf1
{[%clk 0:01:25.1]} 18... Ke7 {[%clk 0:00:11.9]} 19. Rb1 {[%clk 0:01:24.3]} 19...
Bd6 {[%clk 0:00:11.5]} 20. Rg1 {[%clk 0:01:19.3]} 20... Nb7 {[%clk 0:00:11.4]}
21. Rg4 {[%clk 0:01:05.3]} 21... Nc5 {[%clk 0:00:11]} 22. d4 {[%clk 0:01:05.6]}
22... exd4 {[%clk 0:00:08.2]} 23. Nxd4 {[%clk 0:01:06.5]} 23... Ne5 {[%clk
0:00:07.9]} 24. Nf5+ {[%clk 0:01:06]} 24... Kd7 {[%clk 0:00:07.5]} 25. Nxd6
{[%clk 0:01:01.5]} 25... Nxg4 {[%clk 0:00:05.1]} 26. Bf4 {[%clk 0:01:01.8]} 1-0

[Event "Late-Titled-Tuesday-Blitz-March-05-2024"]
[Site "Chess.com"]
[Date "2024.03.05"]
[Round "5"]
[White "ural58"]
[Black "Heydarli77"]
[Result "0-1"]
[WhiteElo "2521"]
[BlackElo "2398"]
[TimeControl "180+1"]
[EndTime "14:53:54 PST"]
[Termination "Heydarli77 won on time"]

1. e4 {[%clk 0:02:59.6]} 1... c5 {[%clk 0:02:57.2]} 2. b3 {[%clk 0:02:59]} 2...
d6 {[%clk 0:02:54.3]} 3. Bb2 {[%clk 0:02:59.2]} 3... e6 {[%clk 0:02:53.7]} 4. f4
{[%clk 0:02:58.9]} 4... Nf6 {[%clk 0:02:52.9]} 5. Qe2 {[%clk 0:02:57]} 5... Nc6
{[%clk 0:02:51.6]} 6. Nf3 {[%clk 0:02:54.9]} 6... Be7 {[%clk 0:02:50.7]} 7. Nc3
{[%clk 0:02:50.3]} 7... Nd4 {[%clk 0:02:48.6]} 8. Qd3 {[%clk 0:02:40.7]} 8... e5
{[%clk 0:02:42]} 9. fxe5 {[%clk 0:02:30.7]} 9... Nxf3+ {[%clk 0:02:40]} 10. Qxf3
{[%clk 0:02:13.5]} 10... dxe5 {[%clk 0:02:38]} 11. Bb5+ {[%clk 0:02:14]} 11...
Bd7 {[%clk 0:02:36.3]} 12. Bxd7+ {[%clk 0:02:13.1]} 12... Qxd7 {[%clk
0:02:35.4]} 13. Nd5 {[%clk 0:02:09.7]} 13... Nxd5 {[%clk 0:02:26.4]} 14. exd5
{[%clk 0:02:09.6]} 14... O-O {[%clk 0:02:26.2]} 15. Bxe5 {[%clk 0:02:02]} 15...
Bh4+ {[%clk 0:02:25.5]} 16. Kd1 {[%clk 0:01:59.3]} 16... Rfe8 {[%clk 0:02:22]}
17. Bb2 {[%clk 0:01:23.1]} 17... b5 {[%clk 0:02:20.4]} 18. g3 {[%clk 0:01:19.1]}
18... Bg5 {[%clk 0:02:19.7]} 19. h4 {[%clk 0:01:17.6]} 19... Be7 {[%clk
0:02:12.7]} 20. a4 {[%clk 0:01:02.7]} 20... b4 {[%clk 0:02:05.1]} 21. Rf1 {[%clk
0:00:50.3]} 21... f6 {[%clk 0:01:58.3]} 22. g4 {[%clk 0:00:41.3]} 22... Rad8
{[%clk 0:01:55.4]} 23. g5 {[%clk 0:00:41.4]} 23... Qxd5 {[%clk 0:01:47.4]} 24.
Qxd5+ {[%clk 0:00:40]} 24... Rxd5 {[%clk 0:01:46.8]} 25. gxf6 {[%clk 0:00:40.1]}
25... gxf6 {[%clk 0:01:46.1]} 26. d3 {[%clk 0:00:35.9]} 26... Kf7 {[%clk
0:01:43.4]} 27. Kd2 {[%clk 0:00:31.7]} 27... Rg8 {[%clk 0:01:43]} 28. Rae1
{[%clk 0:00:26]} 28... Rg4 {[%clk 0:01:33.8]} 29. Rxe7+ {[%clk 0:00:17.5]} 29...
Kxe7 {[%clk 0:01:33.4]} 30. Bxf6+ {[%clk 0:00:17.4]} 30... Ke6 {[%clk
0:01:32.6]} 31. Bg5 {[%clk 0:00:17.5]} 31... Rf5 {[%clk 0:01:30.5]} 32. Re1+
{[%clk 0:00:17.2]} 32... Kd6 {[%clk 0:01:29.7]} 33. Re8 {[%clk 0:00:14.2]} 33...
Rg2+ {[%clk 0:01:28.3]} 34. Ke3 {[%clk 0:00:06.7]} 34... Re5+ {[%clk 0:01:25]}
35. Rxe5 {[%clk 0:00:06.1]} 35... Kxe5 {[%clk 0:01:25.3]} 36. Bf4+ {[%clk
0:00:01.9]} 36... Kd5 {[%clk 0:01:24.4]} 0-1

[Event "Late-Titled-Tuesday-Blitz-March-05-2024"]
[Site "Chess.com"]
[Date "2024.03.05"]
[Round "5"]
[White "HanSchut"]
[Black "terrortoast"]
[Result "0-1"]
[WhiteElo "2324"]
[BlackElo "2517"]
[TimeControl "180+1"]
[EndTime "14:54:01 PST"]
[Termination "terrortoast won on time"]

1. e4 {[%clk 0:03:00.9]} 1... c6 {[%clk 0:03:00.1]} 2. d4 {[%clk 0:03:00.5]}
2... d5 {[%clk 0:03:00.5]} 3. exd5 {[%clk 0:03:01.4]} 3... cxd5 {[%clk
0:03:01.4]} 4. c4 {[%clk 0:03:02]} 4... Nf6 {[%clk 0:03:01.7]} 5. Nc3 {[%clk
0:03:02.7]} 5... e6 {[%clk 0:03:02.1]} 6. Nf3 {[%clk 0:03:02.9]} 6... Bb4 {[%clk
0:03:00.6]} 7. cxd5 {[%clk 0:03:03.2]} 7... Nxd5 {[%clk 0:03:00.7]} 8. Qc2
{[%clk 0:03:03.7]} 8... Bd7 {[%clk 0:02:59.8]} 9. Bd3 {[%clk 0:03:01.1]} 9...
Bc6 {[%clk 0:02:57.9]} 10. Bxh7 {[%clk 0:02:52.1]} 10... Rxh7 {[%clk 0:02:35.8]}
11. Qxh7 {[%clk 0:02:50.4]} 11... Nxc3 {[%clk 0:02:36.2]} 12. Qh8+ {[%clk
0:02:23.1]} 12... Kd7 {[%clk 0:02:33.4]} 13. Qxd8+ {[%clk 0:02:22.8]} 13... Kxd8
{[%clk 0:02:33.5]} 14. a3 {[%clk 0:02:22.9]} 14... Ba5 {[%clk 0:02:29.4]} 15. b4
{[%clk 0:02:23]} 15... Bb6 {[%clk 0:02:25.3]} 16. Be3 {[%clk 0:02:10.5]} 16...
Nd7 {[%clk 0:02:16.4]} 17. Rc1 {[%clk 0:01:58.3]} 17... Nd5 {[%clk 0:01:52]} 18.
O-O {[%clk 0:01:40.6]} 18... a5 {[%clk 0:01:51.8]} 19. Rb1 {[%clk 0:01:18.3]}
19... axb4 {[%clk 0:01:47.2]} 20. axb4 {[%clk 0:01:18.2]} 20... Bb5 {[%clk
0:01:45.4]} 21. Rfc1 {[%clk 0:01:05.4]} 21... Ra3 {[%clk 0:01:41.7]} 22. Re1
{[%clk 0:00:30.6]} 22... Bc7 {[%clk 0:01:07.5]} 23. Ng5 {[%clk 0:00:30]} 23...
Ke7 {[%clk 0:00:59.4]} 24. Ne4 {[%clk 0:00:29.9]} 24... Bd3 {[%clk 0:00:53.1]}
25. Nc5 {[%clk 0:00:25.3]} 25... Bxb1 {[%clk 0:00:48.3]} 26. Rxb1 {[%clk
0:00:24.6]} 26... b6 {[%clk 0:00:43.1]} 27. Nxd7 {[%clk 0:00:19.1]} 27... Kxd7
{[%clk 0:00:44]} 0-1

[Event "Late-Titled-Tuesday-Blitz-March-05-2024"]
[Site "Chess.com"]
[Date "2024.03.05"]
[Round "5"]
[White "Malev212"]
[Black "Teidi96"]
[Result "1-0"]
[WhiteElo "2621"]
[BlackElo "2314"]
[TimeControl "180+1"]
[EndTime "14:54:02 PST"]
[Termination "Malev212 won on time"]

1. e4 {[%clk 0:02:55.3]} 1... c5 {[%clk 0:02:59.7]} 2. Nf3 {[%clk 0:02:54.8]}
2... e6 {[%clk 0:03:00.3]} 3. g3 {[%clk 0:02:52]} 3... Nc6 {[%clk 0:02:59]} 4.
Bg2 {[%clk 0:02:51.1]} 4... Nf6 {[%clk 0:02:59.6]} 5. d3 {[%clk 0:02:50.1]} 5...
d5 {[%clk 0:02:58.6]} 6. Qe2 {[%clk 0:02:49.5]} 6... Be7 {[%clk 0:02:54.6]} 7.
O-O {[%clk 0:02:48.3]} 7... dxe4 {[%clk 0:02:52.4]} 8. dxe4 {[%clk 0:02:47.6]}
8... e5 {[%clk 0:02:53]} 9. c3 {[%clk 0:02:46.6]} 9... O-O {[%clk 0:02:52.3]}
10. Na3 {[%clk 0:02:41.5]} 10... h6 {[%clk 0:02:47.2]} 11. Nc4 {[%clk
0:02:34.4]} 11... Qc7 {[%clk 0:02:47.1]} 12. Ne3 {[%clk 0:02:34]} 12... Be6
{[%clk 0:02:45.3]} 13. Nh4 {[%clk 0:02:32.8]} 13... Rfe8 {[%clk 0:02:30.4]} 14.
Nd5 {[%clk 0:02:31.3]} 14... Bxd5 {[%clk 0:02:16.1]} 15. exd5 {[%clk 0:02:30.4]}
15... Nb8 {[%clk 0:02:16.7]} 16. Nf5 {[%clk 0:02:28.4]} 16... Bf8 {[%clk
0:02:11.9]} 17. Rd1 {[%clk 0:02:26.1]} 17... Nbd7 {[%clk 0:02:04.9]} 18. d6
{[%clk 0:02:24.6]} 18... Qc8 {[%clk 0:01:50]} 19. Be3 {[%clk 0:02:22.5]} 19...
Rb8 {[%clk 0:01:48.8]} 20. a4 {[%clk 0:02:13.7]} 20... b6 {[%clk 0:01:46]} 21.
h4 {[%clk 0:02:05.8]} 21... e4 {[%clk 0:01:33.4]} 22. Bh3 {[%clk 0:01:39.1]}
22... Qc6 {[%clk 0:01:31.6]} 23. Qb5 {[%clk 0:01:35.2]} 23... Ne5 {[%clk
0:01:23.4]} 24. Qxc6 {[%clk 0:01:18.4]} 24... Nxc6 {[%clk 0:01:23.4]} 25. d7
{[%clk 0:01:17.3]} 25... Red8 {[%clk 0:01:16.9]} 26. Bf4 {[%clk 0:01:17]} 26...
Rb7 {[%clk 0:01:09.7]} 27. Nd6 {[%clk 0:01:13.7]} 27... Bxd6 {[%clk 0:01:06]}
28. Rxd6 {[%clk 0:01:13.2]} 28... Nb8 {[%clk 0:00:59.3]} 29. Bxh6 {[%clk
0:01:08.7]} 29... Nbxd7 {[%clk 0:00:53.3]} 30. Bg5 {[%clk 0:01:05.5]} 30... Kf8
{[%clk 0:00:19.5]} 31. Rad1 {[%clk 0:01:03.8]} 31... Ke7 {[%clk 0:00:17.3]} 32.
h5 {[%clk 0:01:02.2]} 32... Ke8 {[%clk 0:00:08.7]} 33. h6 {[%clk 0:01:00.6]} 1-0

[Event "Late-Titled-Tuesday-Blitz-March-05-2024"]
[Site "Chess.com"]
[Date "2024.03.05"]
[Round "5"]
[White "sotochess"]
[Black "ChessBrainiacOnTwitch"]
[Result "0-1"]
[WhiteElo "2578"]
[BlackElo "2791"]
[TimeControl "180+1"]
[EndTime "14:54:04 PST"]
[Termination "ChessBrainiacOnTwitch won by resignation"]

1. e4 {[%clk 0:03:00]} 1... c5 {[%clk 0:02:58]} 2. Nf3 {[%clk 0:02:58.9]} 2...
e6 {[%clk 0:02:57.4]} 3. d4 {[%clk 0:02:57.7]} 3... cxd4 {[%clk 0:02:58.3]} 4.
Nxd4 {[%clk 0:02:58.4]} 4... Nc6 {[%clk 0:02:58.5]} 5. Nb5 {[%clk 0:02:58.4]}
5... Nf6 {[%clk 0:02:56]} 6. N1c3 {[%clk 0:02:51.4]} 6... d6 {[%clk 0:02:51.9]}
7. Bf4 {[%clk 0:02:49.2]} 7... e5 {[%clk 0:02:51.4]} 8. Bg5 {[%clk 0:02:47.9]}
8... a6 {[%clk 0:02:51.6]} 9. Na3 {[%clk 0:02:42.1]} 9... b5 {[%clk 0:02:42.9]}
10. Nd5 {[%clk 0:02:39.7]} 10... Be7 {[%clk 0:02:40.4]} 11. Bxf6 {[%clk
0:02:38.9]} 11... Bxf6 {[%clk 0:02:39.9]} 12. c4 {[%clk 0:02:29.7]} 12... b4
{[%clk 0:02:37.3]} 13. Nc2 {[%clk 0:02:28.6]} 13... a5 {[%clk 0:02:35.5]} 14.
Be2 {[%clk 0:02:24.3]} 14... O-O {[%clk 0:02:35.2]} 15. O-O {[%clk 0:02:23.1]}
15... Bg5 {[%clk 0:02:32.5]} 16. Bg4 {[%clk 0:02:22.2]} 16... Be6 {[%clk
0:02:25.9]} 17. b3 {[%clk 0:02:00.2]} 17... g6 {[%clk 0:02:22.4]} 18. a3 {[%clk
0:01:58.8]} 18... f5 {[%clk 0:02:19.3]} 19. Bf3 {[%clk 0:01:55.8]} 19... Rb8
{[%clk 0:02:16.8]} 20. axb4 {[%clk 0:01:54.4]} 20... axb4 {[%clk 0:02:17.5]} 21.
Ra6 {[%clk 0:01:53.8]} 21... Ne7 {[%clk 0:02:14]} 22. Rxd6 {[%clk 0:01:50.8]}
22... Qc8 {[%clk 0:02:04.6]} 23. Ncxb4 {[%clk 0:01:37.3]} 23... fxe4 {[%clk
0:01:50.9]} 24. Bxe4 {[%clk 0:01:33.5]} 24... Bf5 {[%clk 0:01:40.4]} 25. Qe2
{[%clk 0:01:19.1]} 25... Qc5 {[%clk 0:01:35.7]} 26. Bxf5 {[%clk 0:01:08.6]}
26... Qxd6 {[%clk 0:01:30.3]} 27. c5 {[%clk 0:00:51.1]} 27... Qxc5 {[%clk
0:01:25.9]} 28. Be6+ {[%clk 0:00:50.6]} 28... Kg7 {[%clk 0:01:20.2]} 29. Qxe5+
{[%clk 0:00:48.6]} 29... Bf6 {[%clk 0:01:17.6]} 30. Qe1 {[%clk 0:00:44.5]} 30...
Nxd5 {[%clk 0:01:14.9]} 31. Nxd5 {[%clk 0:00:42.4]} 31... Bd4 {[%clk 0:01:13.6]}
32. b4 {[%clk 0:00:35.8]} 32... Qd6 {[%clk 0:01:13.6]} 33. Qe4 {[%clk
0:00:35.1]} 33... Ba7 {[%clk 0:01:08.9]} 34. Bh3 {[%clk 0:00:19.1]} 34... Rbe8
{[%clk 0:01:08.5]} 35. Qc4 {[%clk 0:00:18.3]} 35... Rxf2 {[%clk 0:00:56.8]} 36.
Kh1 {[%clk 0:00:17.5]} 36... Rxf1+ {[%clk 0:00:55.8]} 0-1

[Event "Late-Titled-Tuesday-Blitz-March-05-2024"]
[Site "Chess.com"]
[Date "2024.03.05"]
[Round "5"]
[White "DonJuan_34"]
[Black "Ajedrez_con_German"]
[Result "1-0"]
[WhiteElo "2469"]
[BlackElo "2576"]
[TimeControl "180+1"]
[EndTime "14:54:08 PST"]
[Termination "DonJuan_34 won by resignation"]

1. d4 {[%clk 0:02:59.1]} 1... g6 {[%clk 0:03:00.9]} 2. c4 {[%clk 0:02:57.7]}
2... Bg7 {[%clk 0:03:01.4]} 3. Nc3 {[%clk 0:02:57.1]} 3... d6 {[%clk 0:02:59.7]}
4. e4 {[%clk 0:02:56.8]} 4... Nf6 {[%clk 0:02:58.6]} 5. Nf3 {[%clk 0:02:56.8]}
5... O-O {[%clk 0:02:58.8]} 6. Be2 {[%clk 0:02:56.9]} 6... c5 {[%clk 0:02:58.9]}
7. d5 {[%clk 0:02:54.9]} 7... e6 {[%clk 0:02:56.5]} 8. O-O {[%clk 0:02:54.3]}
8... exd5 {[%clk 0:02:57]} 9. exd5 {[%clk 0:02:54.1]} 9... Bf5 {[%clk
0:02:56.4]} 10. h3 {[%clk 0:02:52.3]} 10... Ne4 {[%clk 0:02:56.2]} 11. Nxe4
{[%clk 0:02:48.8]} 11... Bxe4 {[%clk 0:02:56.5]} 12. Bd3 {[%clk 0:02:49.1]}
12... Bxf3 {[%clk 0:02:55]} 13. Qxf3 {[%clk 0:02:48.4]} 13... Nd7 {[%clk
0:02:55.9]} 14. Bf4 {[%clk 0:02:41.2]} 14... Ne5 {[%clk 0:02:55.3]} 15. Bxe5
{[%clk 0:02:40.8]} 15... Bxe5 {[%clk 0:02:54.8]} 16. Rab1 {[%clk 0:02:29.4]}
16... Qa5 {[%clk 0:02:52.4]} 17. a3 {[%clk 0:02:25.2]} 17... a6 {[%clk
0:02:52.4]} 18. Bc2 {[%clk 0:02:20.4]} 18... Qd2 {[%clk 0:02:41.4]} 19. Qd3
{[%clk 0:02:18.9]} 19... Qf4 {[%clk 0:02:30.3]} 20. g3 {[%clk 0:02:18.5]} 20...
Qh6 {[%clk 0:02:11.7]} 21. Kg2 {[%clk 0:02:15.5]} 21... b5 {[%clk 0:02:04.5]}
22. b4 {[%clk 0:02:09.9]} 22... cxb4 {[%clk 0:02:01.7]} 23. axb4 {[%clk
0:02:08.9]} 23... Rfc8 {[%clk 0:01:51.3]} 24. Bb3 {[%clk 0:01:53.8]} 24... bxc4
{[%clk 0:01:38.1]} 25. Bxc4 {[%clk 0:01:52.2]} 25... a5 {[%clk 0:01:38.6]} 26.
b5 {[%clk 0:01:36.1]} 26... a4 {[%clk 0:01:29.9]} 27. b6 {[%clk 0:01:34.6]}
27... Rcb8 {[%clk 0:01:29.8]} 28. b7 {[%clk 0:01:29.8]} 28... Ra7 {[%clk
0:01:29.9]} 29. Ba6 {[%clk 0:01:25.8]} 29... a3 {[%clk 0:01:08.8]} 30. Qxa3
{[%clk 0:01:15.2]} 30... Qd2 {[%clk 0:01:07.7]} 31. Rfd1 {[%clk 0:00:59.2]}
31... Qc2 {[%clk 0:00:54]} 32. Rdc1 {[%clk 0:00:45.2]} 32... Qe4+ {[%clk
0:00:50.4]} 33. Qf3 {[%clk 0:00:45]} 33... Qxf3+ {[%clk 0:00:41.3]} 34. Kxf3
{[%clk 0:00:44.8]} 34... Rxa6 {[%clk 0:00:22.4]} 35. Rc8+ {[%clk 0:00:43]} 35...
Kg7 {[%clk 0:00:23]} 36. Rxb8 {[%clk 0:00:43.2]} 36... Ra3+ {[%clk 0:00:22.7]}
37. Kg2 {[%clk 0:00:43]} 1-0

[Event "Late-Titled-Tuesday-Blitz-March-05-2024"]
[Site "Chess.com"]
[Date "2024.03.05"]
[Round "5"]
[White "jamengrand"]
[Black "Alexei_Gubajdullin"]
[Result "0-1"]
[WhiteElo "2481"]
[BlackElo "2633"]
[TimeControl "180+1"]
[EndTime "14:54:09 PST"]
[Termination "Alexei_Gubajdullin won by checkmate"]

1. e4 {[%clk 0:02:29.1]} 1... g6 {[%clk 0:02:58]} 2. d4 {[%clk 0:02:28.7]} 2...
Bg7 {[%clk 0:02:58.3]} 3. Nc3 {[%clk 0:02:28.2]} 3... d6 {[%clk 0:02:58.3]} 4.
a4 {[%clk 0:02:25.3]} 4... Nf6 {[%clk 0:02:53.5]} 5. a5 {[%clk 0:02:25.1]} 5...
O-O {[%clk 0:02:53.4]} 6. h3 {[%clk 0:02:24.6]} 6... Nc6 {[%clk 0:02:51.7]} 7.
Nf3 {[%clk 0:02:16.7]} 7... d5 {[%clk 0:02:48.7]} 8. e5 {[%clk 0:02:13.3]} 8...
Ne4 {[%clk 0:02:48.4]} 9. Bd3 {[%clk 0:01:55.6]} 9... Nxc3 {[%clk 0:02:38.2]}
10. bxc3 {[%clk 0:01:55]} 10... a6 {[%clk 0:02:38.2]} 11. Bf4 {[%clk 0:01:39.8]}
11... f6 {[%clk 0:02:36.8]} 12. Qd2 {[%clk 0:01:36.1]} 12... fxe5 {[%clk
0:02:35.8]} 13. dxe5 {[%clk 0:01:31.7]} 13... Bf5 {[%clk 0:02:35.8]} 14. Bg3
{[%clk 0:00:57.8]} 14... e6 {[%clk 0:02:30]} 15. O-O {[%clk 0:00:56.3]} 15...
Qe7 {[%clk 0:02:21.1]} 16. Ra4 {[%clk 0:00:53.3]} 16... Qc5 {[%clk 0:02:15.7]}
17. Rb1 {[%clk 0:00:41.5]} 17... Nxa5 {[%clk 0:02:13.1]} 18. Bxf5 {[%clk
0:00:37.7]} 18... gxf5 {[%clk 0:02:05.6]} 19. Nd4 {[%clk 0:00:36.1]} 19... Rfe8
{[%clk 0:01:55.1]} 20. Qf4 {[%clk 0:00:21.1]} 20... b6 {[%clk 0:01:50.3]} 21.
Rxa5 {[%clk 0:00:14.1]} 21... Qxa5 {[%clk 0:01:44.3]} 22. Bh4 {[%clk 0:00:06.9]}
22... Qa4 {[%clk 0:01:30.1]} 23. Bf6 {[%clk 0:00:05.1]} 23... Qd7 {[%clk
0:01:29.9]} 24. Qg5 {[%clk 0:00:03.6]} 24... Qf7 {[%clk 0:01:28]} 25. g4 {[%clk
0:00:02.7]} 25... Qg6 {[%clk 0:01:28]} 26. Qh4 {[%clk 0:00:02.7]} 26... fxg4
{[%clk 0:01:25.4]} 27. Kh1 {[%clk 0:00:03.1]} 27... Bxf6 {[%clk 0:01:20.2]} 28.
exf6 {[%clk 0:00:02.4]} 28... e5 {[%clk 0:01:20.6]} 29. Rg1 {[%clk 0:00:02.1]}
29... Qe4+ {[%clk 0:01:13.4]} 30. f3 {[%clk 0:00:01.8]} 30... Qe3 {[%clk
0:01:01.2]} 31. Rxg4+ {[%clk 0:00:02.7]} 31... Kh8 {[%clk 0:01:01.5]} 32. Qh5
{[%clk 0:00:01.6]} 32... exd4 {[%clk 0:00:57.4]} 33. f7 {[%clk 0:00:02.5]} 33...
Qxf3+ {[%clk 0:00:55.8]} 34. Kg1 {[%clk 0:00:01.4]} 34... Re1+ {[%clk 0:00:55]}
35. Kh2 {[%clk 0:00:01.8]} 35... Rh1# {[%clk 0:00:55.8]} 0-1